fUST/lending_fUST_20260506
["ID","MTS","AMOUNT","RATE_DAILY","PERIOD"]
[421647328,1778016638000,-888.0,0.00012177,2]
[421647318,1778016638000,-500.0,0.00012127,2]
[421647321,1778016638000,-500.0,0.00012127,2]
[421647396,1778016639000,-668.22,0.00012328,2]
[421647395,1778016639000,-500.0,0.00012328,2]
[421647394,1778016639000,-500.0,0.00012328,2]
[421647402,1778016639000,-818.72,0.00012328,2]
[421647400,1778016639000,-526.92,0.00012328,2]
[421647392,1778016639000,-698.1,0.00012328,2]
[421647393,1778016639000,-1450.41,0.00012328,2]
[421647404,1778016639000,-1214.34,0.00012328,2]
[421647403,1778016639000,-2929.87,0.00012328,2]
[421647399,1778016639000,-500.0,0.00012328,2]
[421647383,1778016639000,-548.02,0.00012328,2]
[421647391,1778016639000,-604.79,0.00012328,2]
[421647397,1778016639000,-771.14,0.00012328,2]
[421647415,1778016639000,-500.0,0.00012328,2]
[421647401,1778016639000,-500.0,0.00012328,2]
[421647406,1778016639000,-500.0,0.00012328,2]
[421647418,1778016639000,-500.0,0.00012328,2]
[421647416,1778016639000,-500.0,0.00012328,2]
[421647417,1778016639000,-500.0,0.00012328,2]
[421647407,1778016639000,-500.0,0.00012328,2]
[421647405,1778016639000,-500.0,0.00012328,2]
[421647412,1778016639000,-1272.62,0.00012328,2]
[421647411,1778016639000,-1463.13,0.00012328,2]
[421647413,1778016639000,-340.39599245,0.00012328,2]
[421647408,1778016639000,-500.0,0.00012328,2]
[421647409,1778016639000,-858.32,0.00012328,2]
[421647410,1778016639000,-500.0,0.00012328,2]
[421647387,1778016639000,-2726.47,0.00012328,2]
[421647398,1778016639000,-500.0,0.00012328,2]
[421647390,1778016639000,-1423.65,0.00012328,2]
[421647364,1778016639000,-500.0,0.00012328,2]
[421647388,1778016639000,-500.0,0.00012328,2]
[421647414,1778016639000,-500.0,0.00012328,2]
[421647357,1778016639000,-500.0,0.00012328,2]
[421647367,1778016639000,-500.0,0.00012328,2]
[421647356,1778016639000,-500.0,0.00012328,2]
[421647368,1778016639000,-500.0,0.00012328,2]
[421647358,1778016639000,-1423.59,0.00012328,2]
[421647359,1778016639000,-500.0,0.00012328,2]
[421647363,1778016639000,-500.0,0.00012328,2]
[421647365,1778016639000,-500.0,0.00012328,2]
[421647361,1778016639000,-500.0,0.00012328,2]
[421647360,1778016639000,-500.0,0.00012328,2]
[421647366,1778016639000,-1039.6458,0.00012328,2]
[421647362,1778016639000,-153.07664,0.00012328,2]
[421647370,1778016639000,-1184.27,0.00012328,2]
[421647369,1778016639000,-500.0,0.00012328,2]
[421647380,1778016639000,-500.0,0.00012328,2]
[421647377,1778016639000,-540.67,0.00012328,2]
[421647379,1778016639000,-500.0,0.00012328,2]
[421647381,1778016639000,-500.0,0.00012328,2]
[421647372,1778016639000,-519.95,0.00012328,2]
[421647373,1778016639000,-500.0,0.00012328,2]
[421647371,1778016639000,-500.0,0.00012328,2]
[421647374,1778016639000,-500.0,0.00012328,2]
[421647375,1778016639000,-500.0,0.00012328,2]
[421647376,1778016639000,-500.0,0.00012328,2]
[421647378,1778016639000,-586.75,0.00012328,2]
[421647382,1778016639000,-942.68,0.00012328,2]
[421647385,1778016639000,-677.3,0.00012328,2]
[421647384,1778016639000,-500.0,0.00012328,2]
[421647389,1778016639000,-500.0,0.00012328,2]
[421647419,1778016639000,-500.0,0.00012328,2]
[421647482,1778016639000,-500.0,0.00012328,2]
[421647423,1778016639000,-500.0,0.00012328,2]
[421647461,1778016639000,-500.0,0.00012328,2]
[421647470,1778016639000,-500.0,0.00012328,2]
[421647464,1778016639000,-500.0,0.00012328,2]
[421647472,1778016639000,-500.0,0.00012328,2]
[421647465,1778016639000,-500.0,0.00012328,2]
[421647476,1778016639000,-500.0,0.00012328,2]
[421647479,1778016639000,-1246.75,0.00012328,2]
[421647481,1778016639000,-635.8359009,0.00012328,2]
[421647474,1778016639000,-665.55,0.00012328,2]
[421647486,1778016639000,-500.0,0.00012328,2]
[421647473,1778016639000,-500.0,0.00012328,2]
[421647475,1778016639000,-500.0,0.00012328,2]
[421647483,1778016639000,-633.99,0.00012328,2]
[421647478,1778016639000,-971.62,0.00012328,2]
[421647480,1778016639000,-500.0,0.00012328,2]
[421647485,1778016639000,-500.0,0.00012328,2]
[421647477,1778016639000,-500.0,0.00012328,2]
[421647487,1778016639000,-500.0,0.00012328,2]
[421647491,1778016639000,-3988.25,0.00012328,2]
[421647490,1778016639000,-500.0,0.00012328,2]
[421647493,1778016639000,-2550.39,0.00012328,2]
[421647488,1778016639000,-500.0,0.00012328,2]
[421647498,1778016639000,-500.0,0.00012328,2]
[421647492,1778016639000,-503.63,0.00012328,2]
[421647494,1778016639000,-500.0,0.00012328,2]
[421647496,1778016639000,-500.0,0.00012328,2]
[421647497,1778016639000,-8831.68,0.00012328,2]
[421647495,1778016639000,-500.0,0.00012328,2]
[421647422,1778016639000,-743.98,0.00012328,2]
[421647471,1778016639000,-500.0,0.00012328,2]
[421647459,1778016639000,-500.0,0.00012328,2]
[421647484,1778016639000,-500.0,0.00012328,2]
[421647466,1778016639000,-555.27,0.00012328,2]
[421647421,1778016639000,-500.0,0.00012328,2]
[421647463,1778016639000,-500.0,0.00012328,2]
[421647420,1778016639000,-500.0,0.00012328,2]
[421647424,1778016639000,-624.36,0.00012328,2]
[421647430,1778016639000,-500.0,0.00012328,2]
[421647432,1778016639000,-500.0,0.00012328,2]
[421647427,1778016639000,-500.0,0.00012328,2]
[421647425,1778016639000,-1207.19,0.00012328,2]
[421647429,1778016639000,-521.41,0.00012328,2]
[421647431,1778016639000,-1690.97,0.00012328,2]
[421647426,1778016639000,-500.0,0.00012328,2]
[421647434,1778016639000,-601.51,0.00012328,2]
[421647442,1778016639000,-1487.49,0.00012328,2]
[421647433,1778016639000,-500.0,0.00012328,2]
[421647428,1778016639000,-935.23,0.00012328,2]
[421647446,1778016639000,-428.30592142,0.00012328,2]
[421647469,1778016639000,-1759.37,0.00012328,2]
[421647435,1778016639000,-500.0,0.00012328,2]
[421647467,1778016639000,-3126.15,0.00012328,2]
[421647456,1778016639000,-500.0,0.00012328,2]
[421647454,1778016639000,-500.0,0.00012328,2]
[421647450,1778016639000,-500.0,0.00012328,2]
[421647452,1778016639000,-517.0849624,0.00012328,2]
[421647437,1778016639000,-500.0,0.00012328,2]
[421647438,1778016639000,-742.56,0.00012328,2]
[421647439,1778016639000,-2914.34,0.00012328,2]
[421647436,1778016639000,-556.3,0.00012328,2]
[421647468,1778016639000,-500.0,0.00012328,2]
[421647444,1778016639000,-500.0,0.00012328,2]
[421647448,1778016639000,-500.0,0.00012328,2]
[421647519,1778016640000,-513.59,0.00012328,2]
[421647522,1778016640000,-500.0,0.00012328,2]
[421647527,1778016640000,-500.0,0.00012328,2]
[421647525,1778016640000,-500.0,0.00012328,2]
[421647520,1778016640000,-500.0,0.00012328,2]
[421647523,1778016640000,-500.0,0.00012328,2]
[421647526,1778016640000,-500.0,0.00012328,2]
[421647535,1778016640000,-500.0,0.00012328,2]
[421647533,1778016640000,-848.54,0.00012328,2]
[421647534,1778016640000,-569.12,0.00012328,2]
[421647532,1778016640000,-322.70727947,0.00012328,2]
[421647543,1778016640000,-1900.11,0.00012328,2]
[421647544,1778016640000,-500.0,0.00012328,2]
[421647545,1778016640000,-2304.95,0.00012328,2]
[421647521,1778016640000,-689.77,0.00012328,2]
[421647536,1778016640000,-500.0,0.00012328,2]
[421647524,1778016640000,-2358.46,0.00012328,2]
[421647528,1778016640000,-2852.75,0.00012328,2]
[421647503,1778016640000,-7644.55,0.00012328,2]
[421647529,1778016640000,-500.0,0.00012328,2]
[421647538,1778016640000,-500.0,0.00012328,2]
[421647499,1778016640000,-1834.09,0.00012328,2]
[421647500,1778016640000,-500.0,0.00012328,2]
[421647501,1778016640000,-5162.4,0.00012328,2]
[421647504,1778016640000,-1156.62,0.00012328,2]
[421647510,1778016640000,-2564.22,0.00012328,2]
[421647502,1778016640000,-500.0,0.00012328,2]
[421647508,1778016640000,-615.82,0.00012328,2]
[421647506,1778016640000,-744.94,0.00012328,2]
[421647505,1778016640000,-2444.58,0.00012328,2]
[421647514,1778016640000,-500.0,0.00012328,2]
[421647516,1778016640000,-522.11,0.00012328,2]
[421647512,1778016640000,-500.0,0.00012328,2]
[421647507,1778016640000,-2991.77,0.00012328,2]
[421647509,1778016640000,-500.0,0.00012328,2]
[421647531,1778016640000,-500.0,0.00012328,2]
[421647530,1778016640000,-3068.94,0.00012328,2]
[421647517,1778016640000,-925.82,0.00012328,2]
[421647539,1778016640000,-500.0,0.00012328,2]
[421647559,1778016640000,-500.0,0.00012328,2]
[421647541,1778016640000,-1544.79,0.00012328,2]
[421647568,1778016640000,-7806.03,0.00012328,2]
[421647569,1778016640000,-565.9,0.00012328,2]
[421647571,1778016640000,-1573.37,0.00012328,2]
[421647575,1778016640000,-1532.61,0.00012328,2]
[421647574,1778016640000,-505.45,0.00012328,2]
[421647573,1778016640000,-712.61,0.00012328,2]
[421647570,1778016640000,-500.0,0.00012328,2]
[421647560,1778016640000,-40282.11,0.00012328,2]
[421647577,1778016640000,-500.0,0.00012328,2]
[421647572,1778016640000,-1720.91,0.00012328,2]
[421647540,1778016640000,-2559.32,0.00012328,2]
[421647578,1778016640000,-500.0,0.00012328,2]
[421647579,1778016640000,-3508.97353501,0.00012328,2]
[421647581,1778016640000,-225.55353501,0.00012328,2]
[421647582,1778016640000,-744.24204284,0.00012328,2]
[421647580,1778016640000,-774.44646499,0.00012328,2]
[421647576,1778016640000,-3280.73,0.00012328,2]
[421647565,1778016640000,-3272.09,0.00012328,2]
[421647567,1778016640000,-500.0,0.00012328,2]
[421647564,1778016640000,-500.0,0.00012328,2]
[421647537,1778016640000,-500.0,0.00012328,2]
[421647542,1778016640000,-5284.02,0.00012328,2]
[421647547,1778016640000,-535.82,0.00012328,2]
[421647546,1778016640000,-1120.12,0.00012328,2]
[421647550,1778016640000,-1059.87,0.00012328,2]
[421647556,1778016640000,-500.0,0.00012328,2]
[421647557,1778016640000,-2641.88,0.00012328,2]
[421647549,1778016640000,-2689.31,0.00012328,2]
[421647553,1778016640000,-7484.12,0.00012328,2]
[421647551,1778016640000,-500.0,0.00012328,2]
[421647548,1778016640000,-2077.5,0.00012328,2]
[421647552,1778016640000,-500.0,0.00012328,2]
[421647554,1778016640000,-834.36,0.00012328,2]
[421647555,1778016640000,-500.0,0.00012328,2]
[421647561,1778016640000,-562.01,0.00012328,2]
[421647563,1778016640000,-453.67269368,0.00012328,2]
[421647562,1778016640000,-6086.05730632,0.00012328,2]
[421647566,1778016640000,-530.646791,0.00012328,2]
[421647676,1778016643000,-501.26768461,0.00012328,2]
[421647610,1778016643000,-841.45616995,0.00012328,2]
[421647672,1778016643000,-582.17084461,0.00012328,2]
[421647674,1778016643000,-500.0,0.00012328,2]
[421647670,1778016643000,-6766.4982522,0.00012328,2]
[421647723,1778016646000,-3767.81,0.00012328,2]
[421647726,1778016646000,-3861.94,0.00012328,2]
[421647722,1778016646000,-985.16,0.00012328,2]
[421647713,1778016646000,-2093.27,0.00012328,2]
[421647715,1778016646000,-500.0,0.00012328,2]
[421647714,1778016646000,-1874.35,0.00012328,2]
[421647708,1778016646000,-500.0,0.00012328,2]
[421647707,1778016646000,-9234.26,0.00012328,2]
[421647705,1778016646000,-8153.09,0.00012328,2]
[421647703,1778016646000,-763.51,0.00012328,2]
[421647702,1778016646000,-1247.21,0.00012328,2]
[421647706,1778016646000,-1078.0,0.00012328,2]
[421647709,1778016646000,-687.56,0.00012328,2]
[421647704,1778016646000,-2335.42,0.00012328,2]
[421647711,1778016646000,-611.95,0.00012328,2]
[421647700,1778016646000,-1335.31231539,0.00012328,2]
[421647712,1778016646000,-500.0,0.00012328,2]
[421647701,1778016646000,-462.76392713,0.00012328,2]
[421647724,1778016646000,-500.0,0.00012328,2]
[421647710,1778016646000,-1199.11,0.00012328,2]
[421647717,1778016646000,-500.0,0.00012328,2]
[421647742,1778016646000,-823.16,0.00012602,2]
[421647725,1778016646000,-915.28,0.00012328,2]
[421647716,1778016646000,-2427.49,0.00012328,2]
[421647743,1778016646000,-500.0,0.00012602,2]
[421647740,1778016646000,-500.0,0.00012602,2]
[421647741,1778016646000,-555.31424207,0.00012602,2]
[421647733,1778016646000,-205.0,0.00012521,3]
[421647736,1778016646000,-2979.5097,0.00012602,2]
[421647734,1778016646000,-600.0,0.00012574,2]
[421647735,1778016646000,-163.25,0.000126,2]
[421647731,1778016646000,-161.56332863,0.00012338,2]
[421647730,1778016646000,-160.0,0.00012338,2]
[421647737,1778016646000,-683.87,0.00012602,2]
[421647739,1778016646000,-500.0,0.00012602,2]
[421647738,1778016646000,-500.0,0.00012602,2]
[421647729,1778016646000,-160.0,0.00012338,2]
[421647727,1778016646000,-500.0,0.00012328,2]
[421647728,1778016646000,-1559.0,0.0001233,2]
[421647721,1778016646000,-500.0,0.00012328,2]
[421647718,1778016646000,-2113.95,0.00012328,2]
[421647720,1778016646000,-500.0,0.00012328,2]
[421647719,1778016646000,-500.0,0.00012328,2]
[421647732,1778016646000,-160.0,0.00012338,2]
[421647788,1778016647000,-668.22,0.00012602,2]
[421647789,1778016647000,-771.14,0.00012602,2]
[421647784,1778016647000,-1423.65,0.00012602,2]
[421647787,1778016647000,-500.0,0.00012602,2]
[421647782,1778016647000,-604.79,0.00012602,2]
[421647792,1778016647000,-526.92,0.00012602,2]
[421647774,1778016647000,-169.82953564,0.00012602,2]
[421647793,1778016647000,-500.0,0.00012602,2]
[421647791,1778016647000,-500.0,0.00012602,2]
[421647781,1778016647000,-500.0,0.00012602,2]
[421647775,1778016647000,-942.68,0.00012602,2]
[421647783,1778016647000,-698.1,0.00012602,2]
[421647780,1778016647000,-500.0,0.00012602,2]
[421647786,1778016647000,-500.0,0.00012602,2]
[421647800,1778016647000,-500.0,0.00012602,2]
[421647796,1778016647000,-1214.34,0.00012602,2]
[421647794,1778016647000,-818.72,0.00012602,2]
[421647805,1778016647000,-500.0,0.00012602,2]
[421647797,1778016647000,-313.06314569,0.00012602,2]
[421647795,1778016647000,-2929.87,0.00012602,2]
[421647801,1778016647000,-858.32,0.00012602,2]
[421647798,1778016647000,-500.0,0.00012602,2]
[421647806,1778016647000,-500.0,0.00012602,2]
[421647799,1778016647000,-500.0,0.00012602,2]
[421647769,1778016647000,-500.0,0.00012602,2]
[421647803,1778016647000,-1463.13,0.00012602,2]
[421647807,1778016647000,-743.98,0.00012602,2]
[421647802,1778016647000,-500.0,0.00012602,2]
[421647804,1778016647000,-1272.62,0.00012602,2]
[421647785,1778016647000,-1450.41,0.00012602,2]
[421647776,1778016647000,-548.02,0.00012602,2]
[421647760,1778016647000,-1179.0763,0.00012602,2]
[421647770,1778016647000,-540.67,0.00012602,2]
[421647747,1778016647000,-665.65,0.00012602,2]
[421647748,1778016647000,-531.97,0.00012602,2]
[421647749,1778016647000,-500.0,0.00012602,2]
[421647751,1778016647000,-500.0,0.00012602,2]
[421647750,1778016647000,-500.0,0.00012602,2]
[421647752,1778016647000,-500.0,0.00012602,2]
[421647744,1778016647000,-500.0,0.00012602,2]
[421647746,1778016647000,-500.0,0.00012602,2]
[421647745,1778016647000,-500.0,0.00012602,2]
[421647762,1778016647000,-500.0,0.00012602,2]
[421647765,1778016647000,-519.95,0.00012602,2]
[421647764,1778016647000,-1184.27,0.00012602,2]
[421647763,1778016647000,-500.0,0.00012602,2]
[421647755,1778016647000,-500.0,0.00012602,2]
[421647773,1778016647000,-500.0,0.00012602,2]
[421647753,1778016647000,-1423.59,0.00012602,2]
[421647761,1778016647000,-500.0,0.00012602,2]
[421647759,1778016647000,-641.86891284,0.00012602,2]
[421647758,1778016647000,-500.0,0.00012602,2]
[421647757,1778016647000,-500.0,0.00012602,2]
[421647756,1778016647000,-500.0,0.00012602,2]
[421647809,1778016647000,-624.36,0.00012602,2]
[421647778,1778016647000,-677.3,0.00012602,2]
[421647777,1778016647000,-500.0,0.00012602,2]
[421647767,1778016647000,-500.0,0.00012602,2]
[421647771,1778016647000,-586.75,0.00012602,2]
[421647772,1778016647000,-500.0,0.00012602,2]
[421647766,1778016647000,-500.0,0.00012602,2]
[421647779,1778016647000,-2726.47,0.00012602,2]
[421647768,1778016647000,-500.0,0.00012602,2]
[421647754,1778016647000,-500.0,0.00012602,2]
[421647811,1778016647000,-500.0,0.00012602,2]
[421647790,1778016647000,-500.0,0.00012602,2]
[421647821,1778016647000,-1487.49,0.00012602,2]
[421647836,1778016647000,-1246.75,0.00012602,2]
[421647838,1778016647000,-500.0,0.00012602,2]
[421647849,1778016647000,-550.04397144,0.00012602,2]
[421647850,1778016647000,-500.0,0.00012602,2]
[421647851,1778016647000,-8831.68,0.00012602,2]
[421647861,1778016647000,-2991.77,0.00012602,2]
[421647860,1778016647000,-744.94,0.00012602,2]
[421647853,1778016647000,-1834.09,0.00012602,2]
[421647857,1778016647000,-7644.55,0.00012602,2]
[421647852,1778016647000,-500.0,0.00012602,2]
[421647855,1778016647000,-5162.4,0.00012602,2]
[421647859,1778016647000,-2444.58,0.00012602,2]
[421647854,1778016647000,-500.0,0.00012602,2]
[421647858,1778016647000,-1156.62,0.00012602,2]
[421647839,1778016647000,-633.99,0.00012602,2]
[421647856,1778016647000,-500.0,0.00012602,2]
[421647873,1778016647000,-2358.46,0.00012602,2]
[421647867,1778016647000,-925.82,0.00012602,2]
[421647866,1778016647000,-522.11,0.00012602,2]
[421647872,1778016647000,-500.0,0.00012602,2]
[421647868,1778016647000,-513.59,0.00012602,2]
[421647862,1778016647000,-615.82,0.00012602,2]
[421647865,1778016647000,-500.0,0.00012602,2]
[421647870,1778016647000,-689.77,0.00012602,2]
[421647869,1778016647000,-500.0,0.00012602,2]
[421647864,1778016647000,-2564.22,0.00012602,2]
[421647871,1778016647000,-500.0,0.00012602,2]
[421647874,1778016647000,-500.0,0.00012602,2]
[421647876,1778016647000,-2852.75,0.00012602,2]
[421647819,1778016647000,-742.56,0.00012602,2]
[421647863,1778016647000,-641.3,0.00012602,2]
[421647847,1778016647000,-2550.39,0.00012602,2]
[421647840,1778016647000,-500.0,0.00012602,2]
[421647843,1778016647000,-500.0,0.00012602,2]
[421647834,1778016647000,-500.0,0.00012602,2]
[421647833,1778016647000,-665.55,0.00012602,2]
[421647845,1778016647000,-3988.25,0.00012602,2]
[421647823,1778016647000,-500.0,0.00012602,2]
[421647812,1778016647000,-935.23,0.00012602,2]
[421647813,1778016647000,-1690.97,0.00012602,2]
[421647835,1778016647000,-971.62,0.00012602,2]
[421647818,1778016647000,-500.0,0.00012602,2]
[421647817,1778016647000,-556.3,0.00012602,2]
[421647815,1778016647000,-500.0,0.00012602,2]
[421647810,1778016647000,-1207.19,0.00012602,2]
[421647808,1778016647000,-500.0,0.00012602,2]
[421647820,1778016647000,-2914.34,0.00012602,2]
[421647814,1778016647000,-500.0,0.00012602,2]
[421647816,1778016647000,-601.51,0.00012602,2]
[421647824,1778016647000,-500.0,0.00012602,2]
[421647822,1778016647000,-500.0,0.00012602,2]
[421647829,1778016647000,-3126.15,0.00012602,2]
[421647848,1778016647000,-500.0,0.00012602,2]
[421647844,1778016647000,-500.0,0.00012602,2]
[421647826,1778016647000,-500.0,0.00012602,2]
[421647842,1778016647000,-500.0,0.00012602,2]
[421647837,1778016647000,-500.0,0.00012602,2]
[421647841,1778016647000,-500.0,0.00012602,2]
[421647846,1778016647000,-503.63,0.00012602,2]
[421647828,1778016647000,-555.27,0.00012602,2]
[421647830,1778016647000,-1759.37,0.00012602,2]
[421647875,1778016647000,-500.0,0.00012602,2]
[421647827,1778016647000,-500.0,0.00012602,2]
[421647831,1778016647000,-520.01271019,0.00012602,2]
[421647825,1778016647000,-500.0,0.00012602,2]
[421647832,1778016647000,-500.0,0.00012602,2]
[421647878,1778016648000,-3068.94,0.00012602,2]
[421647882,1778016648000,-500.0,0.00012602,2]
[421647884,1778016648000,-2559.32,0.00012602,2]
[421647877,1778016648000,-500.0,0.00012602,2]
[421647879,1778016648000,-848.54,0.00012602,2]
[421647885,1778016648000,-1544.79,0.00012602,2]
[421647880,1778016648000,-569.12,0.00012602,2]
[421647883,1778016648000,-500.0,0.00012602,2]
[421647881,1778016648000,-500.0,0.00012602,2]
[421647886,1778016648000,-5284.02,0.00012602,2]
[421647888,1778016648000,-2304.95,0.00012602,2]
[421647892,1778016648000,-2689.31,0.00012602,2]
[421647889,1778016648000,-1120.12,0.00012602,2]
[421647890,1778016648000,-535.82,0.00012602,2]
[421647887,1778016648000,-1900.11,0.00012602,2]
[421647898,1778016648000,-2641.88,0.00012602,2]
[421647891,1778016648000,-2077.5,0.00012602,2]
[421647893,1778016648000,-1059.87,0.00012602,2]
[421647897,1778016648000,-500.0,0.00012602,2]
[421647896,1778016648000,-500.0,0.00012602,2]
[421647895,1778016648000,-834.36,0.00012602,2]
[421647894,1778016648000,-7484.12,0.00012602,2]
[421647899,1778016648000,-17402.14781742,0.00012602,2]
[421647900,1778016650000,1445.83442208,0.0001,2]
[421647901,1778016669000,589.83851533,0.0001,30]
[421647905,1778016989000,245.00091725,0.00016498,120]
[421647985,1778017831000,-455.83982161,9.606e-05,2]
[421648167,1778017838000,-182.9589299,0.000119,2]
[421648177,1778017838000,-234.0,0.00011975,2]
[421648173,1778017838000,-763.0,0.00011975,2]
[421648169,1778017838000,-155.0,0.00011975,2]
[421648175,1778017838000,-1187.0,0.00011975,2]
[421648179,1778017838000,-234.906,0.00012,2]
[421648171,1778017838000,-4190.0,0.00011975,2]
[421648181,1778017838000,-500.0,0.00012227,2]
[421648192,1778017838000,-500.0,0.00012227,2]
[421648183,1778017838000,-554.13799033,0.00012227,2]
[421648188,1778017838000,-500.0,0.00012227,2]
[421648186,1778017838000,-500.0,0.00012227,2]
[421648201,1778017838000,-500.0,0.00012227,2]
[421648203,1778017838000,-500.0,0.00012227,2]
[421648165,1778017838000,-426.39223989,0.00011827,2]
[421648190,1778017838000,-500.0,0.00012227,2]
[421648194,1778017838000,-500.0,0.00012227,2]
[421648184,1778017838000,-500.0,0.00012227,2]
[421648162,1778017838000,-300.0,0.00010199,2]
[421648146,1778017838000,-300.0,0.00010199,2]
[421648160,1778017838000,-300.0,0.00010199,2]
[421648205,1778017838000,-375.37578596,0.00012227,2]
[421648107,1778017838000,-494.70465487,9.606e-05,2]
[421648109,1778017838000,-154.23751301,9.827e-05,2]
[421648113,1778017838000,-153.43097647,0.0001,2]
[421648111,1778017838000,-207.11184283,9.827e-05,2]
[421648134,1778017838000,-300.0,0.00010199,2]
[421648132,1778017838000,-11404.64549076,0.0001,2]
[421648136,1778017838000,-300.0,0.00010199,2]
[421648140,1778017838000,-300.0,0.00010199,2]
[421648142,1778017838000,-300.0,0.00010199,2]
[421648144,1778017838000,-300.0,0.00010199,2]
[421648148,1778017838000,-300.0,0.00010199,2]
[421648138,1778017838000,-300.0,0.00010199,2]
[421648150,1778017838000,-300.0,0.00010199,2]
[421648152,1778017838000,-300.0,0.00010199,2]
[421648156,1778017838000,-300.0,0.00010199,2]
[421648154,1778017838000,-300.0,0.00010199,2]
[421648158,1778017838000,-300.0,0.00010199,2]
[421648199,1778017838000,-500.0,0.00012227,2]
[421648207,1778017838000,-305.41434704,0.00012227,2]
[421648209,1778017838000,-445.64833088,0.00012227,2]
[421648242,1778017838000,-500.0,0.00012328,2]
[421648250,1778017838000,-551.39,0.00012328,2]
[421648257,1778017838000,-500.0,0.00012328,2]
[421648259,1778017838000,-500.0,0.00012328,2]
[421648253,1778017838000,-680.68,0.00012328,2]
[421648255,1778017838000,-1363.53,0.00012328,2]
[421648264,1778017838000,-500.0,0.00012328,2]
[421648262,1778017838000,-1612.76,0.00012328,2]
[421648261,1778017838000,-508.99,0.00012328,2]
[421648265,1778017838000,-610.09,0.00012328,2]
[421648267,1778017838000,-890.66,0.00012328,2]
[421648273,1778017838000,-500.0,0.00012328,2]
[421648271,1778017838000,-500.0,0.00012328,2]
[421648269,1778017838000,-500.0,0.00012328,2]
[421648279,1778017838000,-500.0,0.00012328,2]
[421648281,1778017838000,-500.0,0.00012328,2]
[421648196,1778017838000,-500.0,0.00012227,2]
[421648248,1778017838000,-500.0,0.00012328,2]
[421648246,1778017838000,-500.0,0.00012328,2]
[421648275,1778017838000,-500.0,0.00012328,2]
[421648240,1778017838000,-500.0,0.00012328,2]
[421648277,1778017838000,-249.11250926,0.00012328,2]
[421648244,1778017838000,-500.0,0.00012328,2]
[421648197,1778017838000,-500.0,0.00012227,2]
[421648198,1778017838000,-500.0,0.00012227,2]
[421648212,1778017838000,-500.0,0.00012328,2]
[421648216,1778017838000,-500.0,0.00012328,2]
[421648220,1778017838000,-541.93452769,0.00012328,2]
[421648222,1778017838000,-1329.54,0.00012328,2]
[421648224,1778017838000,-554.39,0.00012328,2]
[421648211,1778017838000,-161.95383161,0.00012227,2]
[421648234,1778017838000,-500.0,0.00012328,2]
[421648215,1778017838000,-500.0,0.00012328,2]
[421648236,1778017838000,-1113.15,0.00012328,2]
[421648232,1778017838000,-706.88,0.00012328,2]
[421648230,1778017838000,-500.0,0.00012328,2]
[421648226,1778017838000,-500.0,0.00012328,2]
[421648238,1778017838000,-500.0,0.00012328,2]
[421648219,1778017838000,-500.0,0.00012328,2]